bitfinex-derivatives/quotes_SOLF0:USTF0_20260314
["timestamp","ask_amount","ask_price","bid_price","bid_amount"]
[1773515721719,10.349,86.952,86.921,4.6531569]
[1773515751534,10.348,86.96,86.921,4.6531569]
[1773515751734,9.36954676,86.959,86.921,4.6531569]
[1773515752031,9.36954676,86.958,86.921,4.6531569]
[1773515752235,9.36954676,86.957,86.921,4.6531569]
[1773515752430,9.36954676,86.956,86.921,4.6531569]
[1773515752630,10.348,86.96,86.921,4.6531569]
[1773515752925,9.37023577,86.959,86.921,4.6531569]
[1773515753139,9.37023577,86.958,86.921,4.6531569]
[1773515753331,9.37023577,86.957,86.921,4.6531569]
[1773515753532,9.37023577,86.956,86.921,4.6531569]
[1773515753728,13.47254695,86.96,86.921,4.6531569]
[1773515753933,9.37260514,86.959,86.921,4.6531569]
[1773515754135,9.37260514,86.958,86.921,4.6531569]
[1773515754427,9.37260514,86.957,86.921,4.6531569]
[1773515754633,9.37260514,86.956,86.921,4.6531569]
[1773515754833,13.47254695,86.96,86.921,4.6531569]
[1773515755028,9.37347106,86.959,86.921,4.6531569]
[1773515755234,9.37347106,86.958,86.921,4.6531569]
[1773515755534,9.37347106,86.957,86.921,4.6531569]
[1773515755734,9.37347106,86.956,86.921,4.6531569]
[1773515755934,9.37347106,86.955,86.921,4.6531569]
[1773515756234,13.47254695,86.96,86.921,4.6531569]
[1773515756439,9.37556193,86.959,86.921,4.6531569]
[1773515756638,9.37556193,86.958,86.921,4.6531569]
[1773515756936,9.37556193,86.957,86.921,4.6531569]
[1773515757138,9.37556193,86.956,86.921,4.6531569]
[1773515757337,9.37556193,86.955,86.921,4.6531569]
[1773515757529,9.37556193,86.954,86.921,4.6531569]
[1773515757727,13.47254695,86.96,86.921,4.6531569]
[1773515757933,9.37684559,86.959,86.921,4.6531569]
[1773515758134,9.37684559,86.958,86.921,4.6531569]
[1773515758339,9.37684559,86.957,86.921,4.6531569]
[1773515758640,9.37684559,86.956,86.921,4.6531569]
[1773515758833,9.37684559,86.955,86.921,4.6531569]
[1773515759143,9.37684559,86.954,86.921,4.6531569]
[1773515759339,9.37684559,86.953,86.921,4.6531569]
[1773515759540,13.47254695,86.96,86.921,4.6531569]
[1773515759742,9.38026062,86.959,86.921,4.6531569]
[1773515759942,9.38026062,86.958,86.921,4.6531569]
[1773515760141,9.38026062,86.957,86.921,4.6531569]
[1773515760341,9.38026062,86.956,86.921,4.6531569]
[1773515760546,9.38026062,86.955,86.921,4.6531569]
[1773515760844,9.38026062,86.954,86.921,4.6531569]
[1773515761035,9.38026062,86.953,86.921,4.6531569]
[1773515761242,9.38026062,86.952,86.921,4.6531569]
[1773515761442,45.60026062,86.951,86.921,4.6531569]
[1773515761635,9.38026062,86.95,86.921,4.6531569]
[1773515761833,36.22,86.951,86.921,4.6531569]
[1773515762142,9.38852829,86.95,86.921,4.6531569]
[1773515762440,36.22,86.951,86.921,4.6531569]
[1773515762745,9.38853832,86.95,86.921,4.6531569]
[1773515763044,36.22,86.951,86.921,4.6531569]
[1773515763344,9.38884781,86.95,86.921,4.6531569]
[1773515763543,36.22,86.951,86.921,4.6531569]
[1773515763740,9.3888517,86.95,86.921,4.6531569]
[1773515764041,36.22,86.951,86.921,4.6531569]
[1773515764236,9.38892355,86.95,86.921,4.6531569]
[1773515764434,36.22,86.951,86.921,4.6531569]
[1773515764646,9.38892675,86.95,86.921,4.6531569]
[1773515764843,36.22,86.951,86.921,4.6531569]
[1773515765039,9.38892614,86.95,86.921,4.6531569]
[1773515765244,36.22,86.951,86.921,4.6531569]
[1773515765444,9.38901494,86.95,86.921,4.6531569]
[1773515765643,36.22,86.951,86.921,4.6531569]
[1773515765845,9.38901494,86.95,86.921,4.6531569]
[1773515766040,36.22,86.951,86.921,4.6531569]
[1773515766244,9.38916772,86.95,86.921,4.6531569]
[1773515766442,36.22,86.951,86.921,4.6531569]
[1773515766647,9.3891685,86.95,86.921,4.6531569]
[1773515766941,36.22,86.951,86.921,4.6531569]
[1773515767144,9.3891685,86.95,86.921,4.6531569]
[1773515767343,36.22,86.951,86.921,4.6531569]
[1773515767546,9.38917375,86.95,86.921,4.6531569]
[1773515767746,36.22,86.951,86.921,4.6531569]
[1773515767947,9.38917375,86.95,86.921,4.6531569]
[1773515768148,36.22,86.951,86.921,4.6531569]
[1773515768349,9.389182,86.95,86.921,4.6531569]
[1773515768544,36.22,86.951,86.921,4.6531569]
[1773515792271,10.77660817,86.976,86.921,4.6531569]
[1773515792569,3.12454695,86.99,86.921,4.6531569]
[1773515792570,18.91249126,86.975,86.921,4.6531569]
[1773515792771,55.13249126,86.974,86.921,4.6531569]
[1773515792964,18.91249126,86.973,86.921,4.6531569]
[1773515793160,18.91249126,86.973,86.903,52.98]
[1773515793161,9.38548438,86.972,86.935,4.59863143]
[1773515793365,9.38548438,86.971,86.935,4.59863143]
[1773515793566,9.38548438,86.97,86.935,4.59863143]
[1773515793862,9.38548438,86.969,86.935,4.59863143]
[1773515794063,9.38548438,86.968,86.935,4.59863143]
[1773515794270,36.22,86.974,86.935,4.59863143]
[1773515794467,9.37736508,86.973,86.935,4.59863143]
[1773515794666,9.37736508,86.972,86.935,4.59863143]
[1773515794872,36.22,86.974,86.935,4.59863143]
[1773515794873,9.37736508,86.971,86.935,4.59863143]
[1773515795074,9.37736508,86.97,86.935,4.59863143]
[1773515795275,9.37736508,86.969,86.935,4.59863143]
[1773515795474,36.22,86.974,86.935,4.59863143]
[1773515795665,9.37532571,86.973,86.935,4.59863143]
[1773515795870,9.37532571,86.972,86.935,4.59863143]
[1773515796070,9.37532571,86.971,86.935,4.59863143]
[1773515796268,9.37532571,86.97,86.935,4.59863143]
[1773515796471,36.22,86.974,86.935,4.59863143]
[1773515796674,9.37371496,86.973,86.935,4.59863143]
[1773515796876,9.37371496,86.972,86.935,4.59863143]
[1773515797076,9.37371496,86.971,86.935,4.59863143]
[1773515797278,9.37371496,86.97,86.935,4.59863143]
[1773515797477,36.22,86.974,86.935,4.59863143]
[1773515797679,9.37234759,86.973,86.935,4.59863143]
[1773515797880,9.37234759,86.972,86.935,4.59863143]
[1773515798081,9.37234759,86.971,86.935,4.59863143]
[1773515798281,36.22,86.974,86.935,4.59863143]
[1773515798482,9.37116357,86.973,86.935,4.59863143]
[1773515798670,9.37116357,86.972,86.935,4.59863143]
[1773515798876,9.37116357,86.971,86.935,4.59863143]
[1773515799076,36.22,86.974,86.935,4.59863143]
[1773515799276,9.37101895,86.973,86.935,4.59863143]
[1773515799470,9.37101895,86.972,86.935,4.59863143]
[1773515799681,9.37101895,86.971,86.935,4.59863143]
[1773515799881,36.22,86.974,86.935,4.59863143]
[1773515800183,9.37012737,86.973,86.935,4.59863143]
[1773515800383,9.37012737,86.972,86.935,4.59863143]
[1773515800678,9.37012737,86.971,86.935,4.59863143]
[1773515800884,36.22,86.974,86.935,4.59863143]
[1773515801185,9.36922164,86.973,86.935,4.59863143]
[1773515801384,9.36922164,86.972,86.935,4.59863143]
[1773515801586,36.22,86.974,86.935,4.59863143]
[1773515801889,9.36841869,86.973,86.935,4.59863143]
[1773515802082,9.36841869,86.972,86.935,4.59863143]
[1773515802287,36.22,86.974,86.935,4.59863143]
[1773515802589,9.36770629,86.973,86.935,4.59863143]
[1773515802789,9.36770629,86.972,86.935,4.59863143]
[1773515802976,36.22,86.974,86.935,4.59863143]
[1773515803177,9.36770629,86.973,86.935,4.59863143]
[1773515803384,9.36770629,86.972,86.935,4.59863143]
[1773515803678,36.22,86.974,86.935,4.59863143]
[1773515803880,9.36707583,86.973,86.935,4.59863143]
[1773515804086,9.36707583,86.972,86.937,4.59544928]
[1773515804288,36.22,86.974,86.937,4.59544928]
[1773515804489,9.36652351,86.973,86.937,4.59544928]
[1773515804688,9.36652351,86.972,86.937,4.59544928]
[1773515804986,36.22,86.974,86.937,4.59544928]
[1773515805188,9.36652351,86.973,86.937,4.59544928]
[1773515805378,36.22,86.974,86.937,4.59544928]
[1773515805579,9.36615752,86.973,86.937,4.59544928]
[1773515805778,36.22,86.974,86.937,4.59544928]
[1773515805978,9.36615752,86.973,86.937,4.59544928]
[1773515806183,36.22,86.974,86.937,4.59544928]
[1773515806383,9.36562213,86.973,86.937,4.59544928]
[1773515806579,36.22,86.974,86.937,4.59544928]
[1773515806785,9.36562213,86.973,86.937,4.59544928]
[1773515806984,36.22,86.974,86.937,4.59544928]
[1773515807192,9.36562213,86.973,86.937,4.59544928]
[1773515807392,36.22,86.974,86.937,4.59544928]
[1773515807593,9.36526334,86.973,86.937,4.59544928]
[1773515807796,36.22,86.974,86.938,10.35]
[1773515808095,9.36526334,86.973,86.938,14.94923414]
[1773515808395,36.22,86.974,86.938,14.94923414]
[1773515808593,9.3649625,86.973,86.938,14.94923414]
[1773515808893,36.22,86.974,86.938,14.94923414]
[1773515809093,9.3649625,86.973,86.938,14.94923414]
[1773515809296,36.22,86.974,86.938,14.94923414]
[1773515809492,9.36471729,86.973,86.938,14.94923414]
[1773515809693,36.22,86.974,86.938,14.94923414]
[1773515809991,9.36471729,86.973,86.938,14.94923414]
[1773515810193,36.22,86.974,86.938,14.94923414]
[1773515810396,3.12329713,86.99,86.944,4.5998423]
[1773515810595,9.3639828,86.989,86.944,4.5998423]
[1773515810786,9.3639828,86.988,86.95,10.349]
[1773515810990,9.3639828,86.987,86.951,4.59983325]
[1773515811190,3.12329713,86.99,86.951,4.59983325]
[1773515811394,9.36116642,86.989,86.951,4.59983325]
[1773515811696,9.36116642,86.988,86.951,4.59983325]
[1773515811893,9.36116642,86.987,86.954,10.348]
[1773515812084,3.12329713,86.99,86.954,10.348]
[1773515812286,9.35945682,86.989,86.954,10.348]
[1773515812495,9.35945682,86.988,86.954,10.348]
[1773515812692,3.12329713,86.99,86.954,10.348]
[1773515812990,9.35945562,86.989,86.954,10.348]
[1773515813195,3.12329713,86.99,86.954,10.348]
[1773515813396,9.34577414,86.989,86.954,10.348]
[1773515813588,3.12329713,86.99,86.954,10.348]
[1773515813897,9.34577414,86.989,86.954,10.348]
[1773515814093,3.12329713,86.99,86.954,10.348]
[1773515814299,9.34452559,86.989,86.954,10.348]
[1773515814494,3.12329713,86.99,86.954,10.348]
[1773515816795,3.12329713,87.0,86.96,4.59281342]
[1773515817003,3.12329713,87.02,86.961,4.59281342]
[1773515817598,3.12329713,87.02,86.96,3.12329713]
[1773515817599,3.12329713,87.02,86.973,4.59283789]
[1773515818596,3.12329713,87.02,86.976,4.59652212]
[1773515825510,3.12329713,87.04,86.981,4.55298296]
[1773515826508,3.12329713,87.04,86.995,10.343]
[1773515826808,9.30370198,87.054,86.996,4.55196505]
[1773515827009,3.12329713,87.04,86.996,4.55196505]
[1773515827306,3.12329713,87.04,86.998,4.55196505]
[1773515828106,3.12329713,87.05,86.998,4.55196505]
[1773515828599,3.12329713,87.05,87.0,4.57153651]
[1773515830711,3.12329713,87.03,87.0,4.57153651]
[1773515832109,3.12329713,87.06,87.008,4.56711463]
[1773515832814,3.12329713,87.06,87.01,3.12329713]
[1773515833011,3.12329713,87.06,87.011,4.56764959]
[1773515833604,3.12329713,87.07,87.018,10.341]
[1773515835617,3.12329713,87.06,87.011,4.56764959]
[1773515835915,3.12329713,87.05,87.011,4.56764959]
[1773515841016,3.12329713,87.06,87.011,4.56764959]
[1773515841320,3.12329713,87.07,87.011,4.56764959]
[1773515842619,3.12329713,87.07,87.023,4.61039559]
[1773515842819,3.12329713,87.06,87.023,4.61039559]
[1773515843321,3.12329713,87.08,87.027,4.61039559]
[1773515844515,3.12329713,87.08,87.038,4.620843]
[1773515848818,10.333,87.079,87.038,4.620843]
[1773515850022,10.334,87.071,87.038,4.620843]
[1773515861126,3.12329713,87.08,87.038,4.620843]
[1773515861332,10.335,87.064,87.038,4.620843]
[1773515867233,3.11646534,87.08,87.038,4.620843]
[1773515867234,10.334,87.073,87.038,4.620843]
[1773515872935,3.11646534,87.07,87.029,4.6060633]
[1773515873135,3.11646534,87.04,86.991,4.6060633]
[1773515876735,10.337,87.046,86.991,4.6060633]
[1773515879144,10.339,87.035,86.991,4.6060633]
[1773515890950,10.339,87.035,86.97,3.11646534]
[1773515890951,10.341,87.012,86.972,4.55975216]
[1773515894042,3.11646534,87.03,86.972,4.55975216]
[1773515894243,10.34,87.021,86.973,4.5531527]
[1773515894844,3.11646534,87.04,86.932,34.51]
[1773515894845,10.339,87.03,86.981,4.56592014]
[1773515906558,3.11646534,87.04,86.981,4.56592014]
[1773515907560,10.339,87.03,86.981,4.56592014]
[1773515914766,3.11646534,87.04,86.981,4.56592014]
[1773515914767,10.34,87.023,86.981,4.56592014]
[1773515915870,10.341,87.015,86.966,4.57205651]
[1773515918864,10.342,87.007,86.966,4.57205651]
[1773515924473,10.34,87.02,86.971,4.55367397]
[1773515924671,9.34818831,87.019,86.971,4.55367397]
[1773515924974,9.34818831,87.018,86.971,4.55367397]
[1773515925275,9.34818831,87.017,86.971,4.55367397]
[1773515925575,9.34818831,87.016,86.971,4.55367397]
[1773515925775,10.341,87.018,86.971,4.55367397]
[1773515925976,9.34785331,87.017,86.971,4.55367397]
[1773515926174,9.34785331,87.016,86.971,4.55367397]
[1773515926376,3.12069788,87.03,86.971,4.55367397]
[1773515926571,18.79536394,87.029,86.971,4.55367397]
[1773515926772,18.79536394,87.028,86.971,4.55367397]
[1773515926969,18.79536394,87.027,86.971,4.55367397]
[1773515927177,18.79536394,87.026,86.971,4.55367397]
[1773515927377,9.34772521,87.025,86.971,4.55367397]
[1773515927682,10.341,87.016,86.971,4.55367397]
[1773515934089,10.341,87.013,86.971,4.55367397]
[1773515936089,10.342,87.006,86.971,4.55367397]
[1773515936788,10.342,87.006,86.958,4.5289423]
[1773515942393,10.342,87.006,86.916,28.53768209]
[1773515942394,3.12069788,86.99,86.947,4.53108773]
[1773515943393,3.12069788,87.0,86.947,4.53108773]
[1773515943594,10.345,86.983,86.947,4.53108773]
[1773515977024,10.345,86.978,86.937,4.54257439]
[1773515983430,10.344,86.987,86.941,4.53642551]
[1773515984628,10.344,86.987,86.942,4.53640886]
[1773516005939,3.12158584,86.98,86.932,4.52056506]
[1773516007546,13.46658584,86.98,86.932,4.52056506]
[1773516015356,10.345,86.98,86.932,4.52056506]
[1773516020766,3.12158584,86.97,86.922,4.51720784]
[1773516022662,10.347,86.969,86.922,4.51720784]
[1773516024263,10.347,86.969,86.917,10.353]
[1773516024460,13.46958584,86.96,86.908,14.86239794]
[1773516024764,3.12158584,86.95,86.908,4.50839794]
[1773516025666,10.349,86.944,86.908,4.50839794]
[1773516027472,3.12158584,86.95,86.908,4.50839794]
[1773516027770,10.348,86.954,86.908,4.50839794]
[1773516038381,10.347,86.964,86.911,4.55548985]
[1773516039280,10.347,86.964,86.921,4.55200762]
[1773516044485,10.346,86.972,86.923,4.55166467]
[1773516045685,10.346,86.972,86.925,4.55263944]
[1773516048987,3.12406318,86.97,86.925,4.55263944]
[1773516055993,10.346,86.972,86.925,4.55263944]
[1773516057496,10.346,86.972,86.926,10.352]
[1773516057697,10.346,86.972,86.927,4.52864029]
[1773516058400,3.12406318,86.98,86.929,4.52864029]
[1773516058600,18.93701579,86.979,86.929,4.52864029]
[1773516058898,18.93701579,86.978,86.929,4.52864029]
[1773516059098,10.346,86.974,86.929,4.52864029]
[1773516059296,9.39796325,86.973,86.929,4.52864029]
[1773516059498,9.39796325,86.972,86.929,4.52864029]
[1773516059699,10.346,86.974,86.929,4.52864029]
[1773516059900,9.39921625,86.973,86.929,4.52864029]
[1773516060095,9.39921625,86.972,86.929,4.52864029]
[1773516060296,9.40025844,86.971,86.929,4.52864029]
[1773516060496,10.346,86.974,86.929,4.52864029]
[1773516060698,9.40025844,86.973,86.929,4.52864029]
[1773516060898,9.40025844,86.972,86.929,4.52864029]
[1773516061194,9.40025844,86.971,86.929,4.52864029]
[1773516061396,10.346,86.974,86.929,4.52864029]
[1773516061600,9.40173653,86.973,86.929,4.52864029]
[1773516061792,9.40173653,86.972,86.929,4.52864029]
[1773516061997,9.40173653,86.971,86.929,4.52864029]
[1773516062295,9.40309886,86.97,86.929,4.52864029]
[1773516062495,10.346,86.974,86.929,4.52864029]
[1773516062698,9.40333725,86.973,86.929,4.52864029]
[1773516062902,9.40333725,86.972,86.929,4.52864029]
[1773516063096,9.40333725,86.971,86.929,4.52864029]
[1773516063297,9.40333725,86.97,86.929,4.52864029]
[1773516063498,9.40333725,86.969,86.929,4.52864029]
[1773516063698,10.346,86.974,86.929,4.52864029]
[1773516063898,9.40508239,86.973,86.929,4.52864029]
[1773516064101,9.40508239,86.972,86.929,4.52864029]
[1773516064402,9.40508239,86.971,86.929,4.52864029]
[1773516064701,9.40508239,86.97,86.929,4.52864029]
[1773516064893,9.40508239,86.969,86.929,4.52864029]
[1773516065093,10.346,86.974,86.929,4.52864029]
[1773516065402,10.346,86.972,86.929,4.52864029]
[1773516065601,9.40700205,86.971,86.929,4.52864029]
[1773516065804,9.40700205,86.97,86.929,4.52864029]
[1773516066003,9.40700205,86.969,86.929,4.52864029]
[1773516066202,9.40700205,86.968,86.929,4.52864029]
[1773516066400,10.346,86.972,86.929,4.52864029]
[1773516066598,9.40935648,86.971,86.929,4.52864029]
[1773516066794,12.53341966,86.97,86.929,4.52864029]
[1773516066999,9.40935648,86.969,86.929,4.52864029]
[1773516067296,9.40935648,86.968,86.929,4.52864029]
[1773516067497,3.12406318,86.97,86.929,4.52864029]
[1773516067699,9.40957729,86.969,86.929,4.52864029]
[1773516067895,9.40957729,86.968,86.929,4.52864029]
[1773516068102,3.12406318,86.97,86.929,4.52864029]
[1773516068304,9.40974509,86.969,86.929,4.52864029]
[1773516068506,9.40974509,86.968,86.929,4.52864029]
[1773516068703,9.40974509,86.967,86.929,4.52864029]
[1773516068909,3.12406318,86.97,86.929,4.52864029]
[1773516069109,9.40980062,86.969,86.929,4.52864029]
[1773516069308,9.40980062,86.968,86.929,4.52864029]
[1773516069609,9.40980062,86.967,86.929,4.52864029]
[1773516069808,3.12406318,86.97,86.929,4.52864029]
[1773516070010,9.40975199,86.969,86.929,4.52864029]
[1773516070304,9.40975199,86.968,86.929,4.52864029]
[1773516070508,3.12406318,86.97,86.929,4.52864029]
[1773516070709,9.4097289,86.969,86.929,4.52864029]
[1773516070910,9.4097289,86.968,86.929,4.52864029]
[1773516071210,9.41002701,86.967,86.929,4.52864029]
[1773516071410,3.12406318,86.97,86.929,4.52864029]
[1773516071612,9.41011207,86.969,86.929,4.52864029]
[1773516071912,9.41011207,86.968,86.929,4.52864029]
[1773516072105,9.41011207,86.967,86.929,4.52864029]
[1773516072301,3.12406318,86.97,86.929,4.52864029]
[1773516072603,9.41056529,86.969,86.929,4.52864029]
[1773516072802,9.41056529,86.968,86.929,4.52864029]
[1773516073003,9.41056529,86.967,86.929,4.52864029]
[1773516073214,3.12406318,86.97,86.929,4.52864029]
[1773516073513,9.41109574,86.969,86.929,4.52864029]
[1773516073710,9.41109574,86.968,86.929,4.52864029]
[1773516073909,9.41109574,86.967,86.929,4.52864029]
[1773516074110,3.12406318,86.97,86.929,4.52864029]
[1773516074412,9.41159735,86.969,86.929,4.52864029]
[1773516074612,9.41159735,86.968,86.929,4.52864029]
[1773516074811,3.12406318,86.97,86.929,4.52864029]
[1773516074812,9.41159735,86.967,86.929,4.52864029]
[1773516075006,3.12406318,86.97,86.929,4.52864029]
[1773516075214,9.41171697,86.969,86.929,4.52864029]
[1773516075512,9.41171697,86.968,86.929,4.52864029]
[1773516075712,9.41171697,86.967,86.929,4.52864029]
[1773516075913,10.346,86.972,86.929,4.52864029]
[1773516076215,9.41242781,86.971,86.929,4.52864029]
[1773516076407,9.41242781,86.97,86.929,4.52864029]
[1773516076608,9.41242781,86.969,86.929,4.52864029]
[1773516076805,9.41242781,86.968,86.929,4.52864029]
[1773516077010,9.41242781,86.967,86.929,4.52864029]
[1773516077314,9.41242781,86.966,86.929,4.52864029]
[1773516077510,10.346,86.972,86.929,4.52864029]
[1773516077712,9.41416416,86.971,86.929,4.52864029]
[1773516077909,9.41416416,86.97,86.929,4.52864029]
[1773516078114,9.41416416,86.969,86.929,4.52864029]
[1773516078314,9.41416416,86.968,86.929,4.52864029]
[1773516078514,9.41416416,86.967,86.929,4.52864029]
[1773516078716,9.41416416,86.966,86.929,4.52864029]
[1773516079015,9.41416416,86.965,86.929,4.52864029]
[1773516079215,10.346,86.972,86.929,4.52864029]
[1773516079516,9.41643948,86.971,86.929,4.52864029]
[1773516079716,9.41643948,86.97,86.929,4.52864029]
[1773516079916,9.41643948,86.969,86.929,4.52864029]
[1773516080115,9.41643948,86.968,86.929,4.52864029]
[1773516080319,9.41643948,86.967,86.929,4.52864029]
[1773516080517,9.41643948,86.966,86.929,4.52864029]
[1773516080721,9.41643948,86.965,86.929,4.52864029]
[1773516080921,9.41643948,86.964,86.929,4.52864029]
[1773516081221,10.346,86.972,86.929,4.52864029]
[1773516081421,19.00164742,86.971,86.929,4.52864029]
[1773516081714,9.4195501,86.97,86.929,4.52864029]
[1773516081919,9.4195501,86.969,86.929,4.52864029]
[1773516082119,9.4195501,86.968,86.929,4.52864029]
[1773516082321,9.4195501,86.967,86.929,4.52864029]
[1773516082619,9.4195501,86.966,86.929,4.52864029]
[1773516082821,9.4195501,86.965,86.929,4.52864029]
[1773516083020,9.4195501,86.964,86.929,4.52864029]
[1773516083221,9.4195501,86.963,86.929,4.52864029]
[1773516083421,10.346,86.972,86.929,4.52864029]
[1773516083422,9.4195501,86.962,86.929,4.52864029]
[1773516083623,10.346,86.972,86.929,4.52864029]
[1773516083823,18.98619287,86.971,86.929,4.52864029]
[1773516084122,18.98619287,86.97,86.929,4.52864029]
[1773516084320,18.98619287,86.969,86.929,4.52864029]
[1773516084620,10.346,86.972,86.929,4.52864029]
[1773516084621,18.98619287,86.968,86.929,4.52864029]
[1773516084816,9.3990769,86.967,86.929,4.52864029]
[1773516085017,9.3990769,86.966,86.929,4.52864029]
[1773516085217,9.3990769,86.965,86.929,4.52864029]
[1773516085512,9.3990769,86.964,86.929,4.52864029]
[1773516085716,9.3990769,86.963,86.929,4.52864029]
[1773516086022,9.3990769,86.962,86.929,4.52864029]
[1773516086223,9.40160906,86.961,86.929,4.52864029]
[1773516086423,10.346,86.972,86.929,4.52864029]
[1773516086619,18.99137033,86.971,86.929,4.52864029]
[1773516086922,18.99137033,86.97,86.929,4.52864029]
[1773516087123,18.99137033,86.969,86.929,4.52864029]
[1773516087315,18.99137033,86.968,86.929,4.52864029]
[1773516087517,18.99137033,86.967,86.929,4.52864029]
[1773516087716,9.4016577,86.966,86.929,4.52864029]
[1773516087923,9.4016577,86.965,86.929,4.52864029]
[1773516088123,9.4016577,86.964,86.929,4.52864029]
[1773516088424,9.4016577,86.963,86.929,4.52864029]
[1773516088625,9.4016577,86.962,86.929,4.52864029]
[1773516088826,9.4016577,86.961,86.929,4.52864029]
[1773516089022,10.346,86.972,86.929,4.52864029]
[1773516089320,18.9964339,86.971,86.929,4.52864029]
[1773516089527,18.9964339,86.97,86.929,4.52864029]
[1773516089725,18.9964339,86.969,86.929,4.52864029]
[1773516089925,18.9964339,86.968,86.929,4.52864029]
[1773516090127,18.9964339,86.967,86.929,4.52864029]
[1773516090326,18.9964339,86.966,86.929,4.52864029]
[1773516090528,9.40340616,86.965,86.929,4.52864029]
[1773516090726,9.40340616,86.964,86.929,4.52864029]
[1773516090924,9.40340616,86.963,86.929,4.52864029]
[1773516091126,9.40340616,86.962,86.929,4.52864029]
[1773516091428,9.40340616,86.961,86.929,4.52864029]
[1773516091629,9.40340616,86.96,86.929,4.52864029]
[1773516091830,10.346,86.972,86.929,4.52864029]
[1773516092027,18.99846401,86.971,86.929,4.52864029]
[1773516092231,18.99846401,86.97,86.929,4.52864029]
[1773516092432,18.99846401,86.969,86.929,4.52864029]
[1773516092633,18.99846401,86.968,86.929,4.52864029]
[1773516092829,18.99846401,86.967,86.929,4.52864029]
[1773516093131,18.99846401,86.966,86.929,4.52864029]
[1773516093332,9.40523317,86.965,86.929,4.52864029]
[1773516093631,9.40523317,86.964,86.929,4.52864029]
[1773516093832,9.40523317,86.963,86.929,4.52864029]
[1773516094131,9.40523317,86.962,86.929,4.52864029]
[1773516094331,9.40523317,86.961,86.929,4.52864029]
[1773516094526,9.40523317,86.96,86.929,4.52864029]
[1773516094731,10.346,86.972,86.929,4.52864029]
[1773516094927,18.99943274,86.971,86.929,4.52864029]
[1773516095131,18.99943274,86.97,86.929,4.52864029]
[1773516095334,18.99943274,86.969,86.929,4.52864029]
[1773516095531,18.99943274,86.968,86.929,4.52864029]
[1773516095732,18.99943274,86.967,86.929,4.52864029]
[1773516095932,18.99943274,86.966,86.929,4.52864029]
[1773516096232,18.99943274,86.965,86.929,4.52864029]
[1773516096423,9.405781,86.964,86.929,4.52864029]
[1773516096628,9.405781,86.963,86.929,4.52864029]
[1773516096823,9.405781,86.962,86.929,4.52864029]
[1773516097033,9.405781,86.961,86.929,4.52864029]
[1773516097232,9.405781,86.96,86.929,4.52864029]
[1773516097434,10.346,86.972,86.929,4.52864029]
[1773516097631,10.346,86.97,86.929,4.52864029]
[1773516097831,19.01152244,86.969,86.929,4.52864029]
[1773516098030,19.01152244,86.968,86.929,4.52864029]
[1773516098230,19.01152244,86.967,86.929,4.52864029]
[1773516098430,19.01152244,86.966,86.929,4.52864029]
[1773516098632,19.01152244,86.965,86.929,4.52864029]
[1773516098926,9.40647149,86.964,86.929,4.52864029]
[1773516099132,9.40647149,86.963,86.929,4.52864029]
[1773516099332,9.40647149,86.962,86.929,4.52864029]
[1773516099635,9.40647149,86.961,86.929,4.52864029]
[1773516099827,9.40647149,86.96,86.929,4.52864029]
[1773516100030,9.40647149,86.959,86.929,4.52864029]
[1773516100227,10.346,86.97,86.929,4.52864029]
[1773516100428,19.0116454,86.969,86.929,4.52864029]
[1773516100636,19.0116454,86.968,86.929,4.52864029]
[1773516100831,19.0116454,86.967,86.929,4.52864029]
[1773516101035,19.0116454,86.966,86.929,4.52864029]
[1773516101238,19.0116454,86.965,86.929,4.52864029]
[1773516101537,9.40652949,86.964,86.929,4.52864029]
[1773516101837,9.40652949,86.963,86.929,4.52864029]
[1773516102037,9.40652949,86.962,86.929,4.52864029]
[1773516102239,9.40652949,86.961,86.929,4.52864029]
[1773516102439,9.40652949,86.96,86.929,4.52864029]
[1773516102640,10.346,86.97,86.929,4.52864029]
[1773516102641,9.40652949,86.959,86.929,4.52864029]
[1773516102836,10.346,86.97,86.929,4.52864029]
[1773516103037,19.01158175,86.969,86.929,4.52864029]
[1773516103336,19.01158175,86.968,86.929,4.52864029]
[1773516103536,19.01158175,86.967,86.929,4.52864029]
[1773516103737,19.01158175,86.966,86.929,4.52864029]
[1773516103934,9.40649586,86.965,86.93,4.5081818]
[1773516104139,10.73156115,86.992,86.93,4.5081818]
[1773516104340,3.12406318,86.99,86.931,4.5081818]
[1773516104643,18.99665811,86.989,86.931,4.5081818]
[1773516104846,10.345,86.985,86.939,4.50817685]
[1773516105139,18.99665811,86.984,86.939,4.50817685]
[1773516105443,18.99665811,86.983,86.939,4.50817685]
[1773516105637,18.99665811,86.982,86.939,4.50817685]
[1773516105838,9.39925786,86.981,86.939,4.50817685]
[1773516106037,9.39925786,86.98,86.939,4.50817685]
[1773516106240,10.345,86.985,86.939,4.50817685]